[Event "*** Titled Tuesday 3|2 Blitz"]
[Site "Chess.com"]
[Date "2015.10.06"]
[Round "7"]
[White "LePlusMortel"]
[Black "StellarChessPro"]
[Result "1-0"]
[WhiteElo "2392"]
[BlackElo "2242"]
[TimeControl "180+2"]
[EndTime "18:32:00 PDT"]
[Termination "LePlusMortel won by resignation"]

1. Nf3 {[%clk 0:03:01.9]} 1... c6 {[%clk 0:03:01.9]} 2. d4 {[%clk 0:03:00.9]}
2... d5 {[%clk 0:03:03.8]} 3. Bf4 {[%clk 0:03:02]} 3... Nf6 {[%clk 0:03:05]} 4.
Nbd2 {[%clk 0:03:03.2]} 4... g6 {[%clk 0:03:05.9]} 5. e3 {[%clk 0:03:04]} 5...
Bg7 {[%clk 0:03:07.4]} 6. Be2 {[%clk 0:03:05.7]} 6... O-O {[%clk 0:03:08.9]} 7.
Ne5 {[%clk 0:03:07.4]} 7... Nbd7 {[%clk 0:03:08.9]} 8. h4 {[%clk 0:03:08.4]}
8... Nxe5 {[%clk 0:03:10]} 9. Bxe5 {[%clk 0:03:10.3]} 9... Nd7 {[%clk
0:03:11.1]} 10. Bxg7 {[%clk 0:03:11.2]} 10... Kxg7 {[%clk 0:03:13]} 11. f4
{[%clk 0:03:11.7]} 11... h5 {[%clk 0:03:13.1]} 12. Nf3 {[%clk 0:02:48.4]} 12...
Qa5+ {[%clk 0:03:09.4]} 13. c3 {[%clk 0:02:48.5]} 13... Nf6 {[%clk 0:03:07]} 14.
Ne5 {[%clk 0:02:45.7]} 14... Ne4 {[%clk 0:03:08.2]} 15. Bf3 {[%clk 0:02:26.8]}
15... f6 {[%clk 0:03:03.3]} 16. Nd3 {[%clk 0:02:19.6]} 16... Qb5 {[%clk
0:02:56.9]} 17. a4 {[%clk 0:01:53.6]} 17... Qb6 {[%clk 0:02:57.6]} 18. a5 {[%clk
0:01:53.5]} 18... Qc7 {[%clk 0:02:58.6]} 19. Bxe4 {[%clk 0:01:53.9]} 19... dxe4
{[%clk 0:02:59.4]} 20. Nf2 {[%clk 0:01:48.1]} 20... f5 {[%clk 0:02:59.5]} 21. c4
{[%clk 0:01:41.9]} 21... Qd6 {[%clk 0:02:58.9]} 22. Qd2 {[%clk 0:01:40.2]} 22...
Be6 {[%clk 0:02:59.9]} 23. Qc3 {[%clk 0:01:34.7]} 23... Kh6 {[%clk 0:02:59.5]}
24. O-O {[%clk 0:01:32.5]} 24... b6 {[%clk 0:02:57.2]} 25. Nh3 {[%clk 0:01:31]}
25... b5 {[%clk 0:02:55.5]} 26. b3 {[%clk 0:01:30]} 26... bxc4 {[%clk 0:02:56]}
27. bxc4 {[%clk 0:01:31.1]} 27... Rab8 {[%clk 0:02:57.5]} 28. Rfb1 {[%clk
0:01:28]} 28... Rxb1+ {[%clk 0:02:57.3]} 29. Rxb1 {[%clk 0:01:29.9]} 29... Rb8
{[%clk 0:02:58.1]} 30. Rb3 {[%clk 0:01:02.5]} 30... Rxb3 {[%clk 0:02:55.4]} 31.
Qxb3 {[%clk 0:01:04.4]} 31... Qc7 {[%clk 0:02:45.6]} 32. Qb4 {[%clk 0:01:00.5]}
32... Bg8 {[%clk 0:02:27.2]} 33. Ng5 {[%clk 0:00:59]} 33... Kg7 {[%clk
0:02:27.1]} 34. Kh2 {[%clk 0:00:55.9]} 34... Kf8 {[%clk 0:02:26.5]} 35. Qc5
{[%clk 0:00:38]} 35... Ke8 {[%clk 0:02:25.4]} 36. Nh3 {[%clk 0:00:31.9]} 36...
Kd7 {[%clk 0:02:24.5]} 37. Ng1 {[%clk 0:00:31]} 37... Kc8 {[%clk 0:02:21.2]} 38.
Ne2 {[%clk 0:00:31.5]} 38... Kb7 {[%clk 0:02:19.8]} 39. Qb4+ {[%clk 0:00:29.7]}
39... Kc8 {[%clk 0:02:03.4]} 40. Nc3 {[%clk 0:00:29.5]} 40... Bf7 {[%clk
0:01:56.2]} 41. Na4 {[%clk 0:00:26.9]} 41... Kd8 {[%clk 0:01:36.2]} 42. Kg3
{[%clk 0:00:26.8]} 42... Ke8 {[%clk 0:01:36.3]} 43. Qc5 {[%clk 0:00:26.5]} 43...
Kd8 {[%clk 0:01:36.1]} 44. Qe5 {[%clk 0:00:25.6]} 44... Qxe5 {[%clk 0:01:36.5]}
45. fxe5 {[%clk 0:00:27.5]} 45... Bxc4 {[%clk 0:01:35.5]} 46. Kf4 {[%clk
0:00:28.7]} 46... Bf7 {[%clk 0:01:33.9]} 47. Nc5 {[%clk 0:00:29.3]} 47... Kc7
{[%clk 0:01:20.5]} 48. Kg5 {[%clk 0:00:19.1]} 48... Kd8 {[%clk 0:01:17.3]} 49.
e6 {[%clk 0:00:16.8]} 49... Be8 {[%clk 0:01:17.8]} 50. g3 {[%clk 0:00:18.3]}
50... Kc7 {[%clk 0:01:17.8]} 51. Kh6 {[%clk 0:00:18.4]} 51... Kd6 {[%clk
0:01:17.5]} 52. Kg7 {[%clk 0:00:20]} 52... g5 {[%clk 0:00:48.8]} 53. hxg5 {[%clk
0:00:16.1]} 53... f4 {[%clk 0:00:50]} 54. Nxe4+ {[%clk 0:00:09.2]} 54... Kxe6
{[%clk 0:00:48.3]} 55. exf4 {[%clk 0:00:09.6]} 55... Kf5 {[%clk 0:00:49]} 56.
Nf2 {[%clk 0:00:10.1]} 56... h4 {[%clk 0:00:45.4]} 57. gxh4 {[%clk 0:00:12]}
57... Kxf4 {[%clk 0:00:47.3]} 58. Kf8 {[%clk 0:00:13.3]} 58... Bh5 {[%clk
0:00:43.4]} 59. Kxe7 {[%clk 0:00:14.8]} 59... Kg3 {[%clk 0:00:44.5]} 60. Ne4+
{[%clk 0:00:15.6]} 60... Kxh4 {[%clk 0:00:45.8]} 61. Kf6 {[%clk 0:00:14.8]}
61... Kg4 {[%clk 0:00:46]} 62. Nc5 {[%clk 0:00:16.7]} 62... Kf4 {[%clk
0:00:46.3]} 63. a6 {[%clk 0:00:15.7]} 63... Ke3 {[%clk 0:00:46.9]} 64. Ne6
{[%clk 0:00:17.3]} 64... Ke4 {[%clk 0:00:46.2]} 65. Nd8 {[%clk 0:00:18.9]} 65...
Kd5 {[%clk 0:00:45.6]} 66. Kf5 {[%clk 0:00:19.5]} 66... c5 {[%clk 0:00:45]} 67.
dxc5 {[%clk 0:00:19.3]} 67... Kxc5 {[%clk 0:00:46.9]} 68. Ne6+ {[%clk
0:00:18.2]} 68... Kb6 {[%clk 0:00:46.7]} 69. Nf4 {[%clk 0:00:19.7]} 69... Bf7
{[%clk 0:00:47.4]} 70. Kf6 {[%clk 0:00:20.6]} 70... Be8 {[%clk 0:00:46.4]} 71.
Nd5+ {[%clk 0:00:19.8]} 71... Kc5 {[%clk 0:00:45.5]} 72. Ke6 {[%clk 0:00:18.6]}
72... Bh5 {[%clk 0:00:38.1]} 73. Nf4 {[%clk 0:00:16.1]} 73... Bg4+ {[%clk
0:00:28.1]} 74. Kf6 {[%clk 0:00:16.2]} 74... Bd1 {[%clk 0:00:18.3]} 75. g6
{[%clk 0:00:17.1]} 75... Bb3 {[%clk 0:00:18.4]} 76. g7 {[%clk 0:00:16.5]} 76...
Kd6 {[%clk 0:00:19.2]} 77. Ng6 {[%clk 0:00:16.4]} 77... Bg8 {[%clk 0:00:17.1]}
78. Ne7 {[%clk 0:00:16.8]} 78... Bh7 {[%clk 0:00:18.2]} 79. Nc8+ {[%clk
0:00:15]} 79... Kc7 {[%clk 0:00:18.9]} 80. Nxa7 {[%clk 0:00:16.9]} 80... Kb6
{[%clk 0:00:20.8]} 81. Nc8+ {[%clk 0:00:17.9]} 81... Kxa6 {[%clk 0:00:22.3]} 82.
Ne7 {[%clk 0:00:19]} 82... Kb7 {[%clk 0:00:23.4]} 83. Kg5 {[%clk 0:00:20.5]}
83... Kc7 {[%clk 0:00:23.3]} 84. Kh6 {[%clk 0:00:21.5]} 1-0

[Event "*** Titled Tuesday 3|2 Blitz"]
[Site "Chess.com"]
[Date "2015.10.06"]
[Round "7"]
[White "gmjlh"]
[Black "Gabrinsky"]
[Result "1-0"]
[WhiteElo "2617"]
[BlackElo "2474"]
[TimeControl "180+2"]
[EndTime "18:32:17 PDT"]
[Termination "gmjlh won by checkmate"]

1. e4 {[%clk 0:03:01.9]} 1... e6 {[%clk 0:02:44]} 2. d4 {[%clk 0:03:02.6]} 2...
d5 {[%clk 0:02:45]} 3. Nd2 {[%clk 0:03:04.2]} 3... a6 {[%clk 0:02:46.1]} 4. Ngf3
{[%clk 0:03:04.8]} 4... Nf6 {[%clk 0:02:47.5]} 5. e5 {[%clk 0:03:02.3]} 5...
Nfd7 {[%clk 0:02:48.7]} 6. Be2 {[%clk 0:02:57.6]} 6... c5 {[%clk 0:02:50.6]} 7.
c3 {[%clk 0:02:58.2]} 7... Nc6 {[%clk 0:02:52.2]} 8. O-O {[%clk 0:02:58.9]} 8...
Be7 {[%clk 0:02:50.3]} 9. b3 {[%clk 0:02:53.1]} 9... g5 {[%clk 0:02:50]} 10. Bb2
{[%clk 0:02:53.9]} 10... g4 {[%clk 0:02:49.6]} 11. Ne1 {[%clk 0:02:54.8]} 11...
h5 {[%clk 0:02:50.9]} 12. f4 {[%clk 0:02:54.9]} 12... cxd4 {[%clk 0:02:48.4]}
13. cxd4 {[%clk 0:02:55.6]} 13... Qb6 {[%clk 0:02:48.3]} 14. Nc2 {[%clk
0:02:56.6]} 14... Nb4 {[%clk 0:02:44]} 15. a3 {[%clk 0:02:47.7]} 15... Nxc2
{[%clk 0:02:41.8]} 16. Qxc2 {[%clk 0:02:49.6]} 16... Qc6 {[%clk 0:02:42.3]} 17.
Qd1 {[%clk 0:02:34.3]} 17... b5 {[%clk 0:02:40.4]} 18. Rc1 {[%clk 0:02:23.9]}
18... Qb6 {[%clk 0:02:39.6]} 19. Kh1 {[%clk 0:02:24.5]} 19... Nf8 {[%clk
0:02:24.2]} 20. b4 {[%clk 0:02:13.7]} 20... Bd7 {[%clk 0:02:18.8]} 21. Nb3
{[%clk 0:02:14]} 21... Rc8 {[%clk 0:02:20.3]} 22. Nc5 {[%clk 0:02:10.9]} 22...
Bxc5 {[%clk 0:02:18.2]} 23. dxc5 {[%clk 0:02:09.6]} 23... Qc6 {[%clk 0:02:19.2]}
24. f5 {[%clk 0:02:00.7]} 24... Rg8 {[%clk 0:02:10.4]} 25. fxe6 {[%clk
0:01:58.3]} 25... Bxe6 {[%clk 0:02:11.5]} 26. Bd4 {[%clk 0:01:52.6]} 26... Ng6
{[%clk 0:02:11.6]} 27. Bd3 {[%clk 0:01:48.8]} 27... Kd7 {[%clk 0:02:10.1]} 28.
Rf6 {[%clk 0:01:49.6]} 28... Rcf8 {[%clk 0:02:04.6]} 29. Qe2 {[%clk 0:01:50.5]}
29... Ne7 {[%clk 0:01:59.4]} 30. a4 {[%clk 0:01:50.4]} 30... Rb8 {[%clk
0:01:57.7]} 31. axb5 {[%clk 0:01:51.4]} 31... axb5 {[%clk 0:01:59.6]} 32. Ra1
{[%clk 0:01:52.3]} 32... Rb7 {[%clk 0:02:00.9]} 33. Ra5 {[%clk 0:01:32.9]} 33...
Rgb8 {[%clk 0:02:01.5]} 34. Rh6 {[%clk 0:01:27.1]} 34... Kc7 {[%clk 0:01:55.1]}
35. Rxh5 {[%clk 0:01:24.4]} 35... Qe8 {[%clk 0:01:56.1]} 36. Bc3 {[%clk
0:00:53.7]} 36... Nc6 {[%clk 0:01:49.8]} 37. Rxb5 {[%clk 0:00:40.3]} 37... Rxb5
{[%clk 0:01:47.9]} 38. Bxb5 {[%clk 0:00:42.2]} 38... Nd4 {[%clk 0:01:49.6]} 39.
Bxd4 {[%clk 0:00:40.1]} 39... Qxb5 {[%clk 0:01:50.4]} 40. Qxb5 {[%clk
0:00:38.3]} 40... Rxb5 {[%clk 0:01:52.3]} 41. Bc3 {[%clk 0:00:39.4]} 41... d4
{[%clk 0:01:52.4]} 42. Be1 {[%clk 0:00:39.7]} 42... Kc6 {[%clk 0:01:47.6]} 43.
Rh8 {[%clk 0:00:38.2]} 43... Rb7 {[%clk 0:01:32.4]} 44. Ra8 {[%clk 0:00:38.9]}
44... Kd5 {[%clk 0:01:32.5]} 45. Kg1 {[%clk 0:00:31.6]} 45... Bd7 {[%clk
0:01:10.8]} 46. Ra5 {[%clk 0:00:17.9]} 46... Bc6 {[%clk 0:01:07.8]} 47. Ra6
{[%clk 0:00:19.3]} 47... Bb5 {[%clk 0:01:05.6]} 48. Rd6+ {[%clk 0:00:18.1]}
48... Kxe5 {[%clk 0:01:03.1]} 49. Bg3+ {[%clk 0:00:15.3]} 49... Ke4 {[%clk
0:01:04.3]} 50. c6 {[%clk 0:00:15.7]} 50... Rc7 {[%clk 0:01:01.8]} 51. Rxd4+
{[%clk 0:00:11.7]} 51... Kxd4 {[%clk 0:01:02.7]} 52. Bxc7 {[%clk 0:00:13.2]}
52... Bxc6 {[%clk 0:01:04.2]} 53. h4 {[%clk 0:00:12.7]} 53... gxh3 {[%clk
0:00:49.8]} 54. gxh3 {[%clk 0:00:14.6]} 54... Ke4 {[%clk 0:00:50.4]} 55. Kf2
{[%clk 0:00:14.2]} 55... f5 {[%clk 0:00:48]} 56. Kg3 {[%clk 0:00:15.4]} 56...
Be8 {[%clk 0:00:46]} 57. Bf4 {[%clk 0:00:13]} 57... Bd7 {[%clk 0:00:40.2]} 58.
Bc1 {[%clk 0:00:13.8]} 58... Be8 {[%clk 0:00:41.3]} 59. h4 {[%clk 0:00:09.7]}
59... Ke5 {[%clk 0:00:32.6]} 60. Kf3 {[%clk 0:00:05]} 60... Bh5+ {[%clk
0:00:30.5]} 61. Kg3 {[%clk 0:00:06.3]} 61... Be8 {[%clk 0:00:31.4]} 62. Bh6
{[%clk 0:00:07.6]} 62... Ke4 {[%clk 0:00:30.3]} 63. Bg5 {[%clk 0:00:09.1]} 63...
Ke5 {[%clk 0:00:30.7]} 64. Kf3 {[%clk 0:00:10.7]} 64... Bb5 {[%clk 0:00:20.1]}
65. Ke3 {[%clk 0:00:10.9]} 65... Kd5 {[%clk 0:00:18.1]} 66. h5 {[%clk
0:00:11.2]} 66... Be8 {[%clk 0:00:18.3]} 67. h6 {[%clk 0:00:12.3]} 67... Bg6
{[%clk 0:00:19.4]} 68. Kf4 {[%clk 0:00:12]} 68... Kc4 {[%clk 0:00:18.7]} 69. Be7
{[%clk 0:00:12.8]} 69... Kb5 {[%clk 0:00:19.4]} 70. Bc5 {[%clk 0:00:13.8]} 70...
Kc4 {[%clk 0:00:20.3]} 71. Be7 {[%clk 0:00:14]} 71... Kb5 {[%clk 0:00:21.2]} 72.
Ke3 {[%clk 0:00:15.3]} 72... Kc4 {[%clk 0:00:22.2]} 73. Bf8 {[%clk 0:00:16.6]}
73... Bh7 {[%clk 0:00:23.3]} 74. Kf4 {[%clk 0:00:16.2]} 74... Kb5 {[%clk
0:00:23.3]} 75. Kg5 {[%clk 0:00:16.9]} 75... Kc4 {[%clk 0:00:23.3]} 76. Bd6
{[%clk 0:00:17.9]} 76... Kb5 {[%clk 0:00:24]} 77. Bc5 {[%clk 0:00:18.6]} 77...
Kc4 {[%clk 0:00:25.1]} 78. Bf8 {[%clk 0:00:19.6]} 78... Kb5 {[%clk 0:00:26.4]}
79. Bd6 {[%clk 0:00:20.6]} 79... Kc4 {[%clk 0:00:27.8]} 80. Bf4 {[%clk 0:00:20]}
80... Kb5 {[%clk 0:00:29]} 81. Kf6 {[%clk 0:00:21.3]} 81... Kxb4 {[%clk
0:00:20.6]} 82. Kg7 {[%clk 0:00:22.5]} 82... Kc4 {[%clk 0:00:22.2]} 83. Kxh7
{[%clk 0:00:23.7]} 83... Kd4 {[%clk 0:00:24.1]} 84. Kg6 {[%clk 0:00:25.2]} 84...
Ke4 {[%clk 0:00:26]} 85. Kg5 {[%clk 0:00:26.7]} 85... Kf3 {[%clk 0:00:27.2]} 86.
h7 {[%clk 0:00:28.6]} 86... Ke4 {[%clk 0:00:29.1]} 87. h8=Q {[%clk 0:00:30.5]}
87... Kf3 {[%clk 0:00:31]} 88. Qh1+ {[%clk 0:00:31.5]} 88... Ke2 {[%clk
0:00:32.2]} 89. Qh2+ {[%clk 0:00:32.2]} 89... Kd3 {[%clk 0:00:34.1]} 90. Qd2+
{[%clk 0:00:33.1]} 90... Ke4 {[%clk 0:00:34.5]} 91. Qe3+ {[%clk 0:00:34]} 91...
Kd5 {[%clk 0:00:36.4]} 92. Qe5+ {[%clk 0:00:35.3]} 92... Kc4 {[%clk 0:00:38.3]}
93. Kxf5 {[%clk 0:00:36.1]} 93... Kb3 {[%clk 0:00:39.7]} 94. Qd4 {[%clk
0:00:37]} 94... Ka3 {[%clk 0:00:40.2]} 95. Qb6 {[%clk 0:00:37.5]} 95... Ka2
{[%clk 0:00:41.4]} 96. Qb5 {[%clk 0:00:36.4]} 96... Ka3 {[%clk 0:00:43.3]} 97.
Be5 {[%clk 0:00:34.3]} 97... Ka2 {[%clk 0:00:45.2]} 98. Qb2# {[%clk 0:00:34.7]}
1-0

[Event "*** Titled Tuesday 3|2 Blitz"]
[Site "Chess.com"]
[Date "2015.10.06"]
[Round "8"]
[White "Andnar"]
[Black "chess960now"]
[Result "1-0"]
[WhiteElo "2237"]
[BlackElo "1981"]
[TimeControl "180+2"]
[EndTime "18:39:39 PDT"]
[Termination "Andnar won by resignation"]

1. e4 {[%clk 0:03:01.9]} 1... d5 {[%clk 0:03:00.7]} 2. exd5 {[%clk 0:03:02.5]}
2... c6 {[%clk 0:02:59.9]} 3. dxc6 {[%clk 0:02:59.3]} 3... Nxc6 {[%clk
0:03:00.8]} 4. Nc3 {[%clk 0:02:59]} 4... e5 {[%clk 0:02:57.9]} 5. Bc4 {[%clk
0:02:59.2]} 5... Nf6 {[%clk 0:02:57.4]} 6. h3 {[%clk 0:02:59.8]} 6... Bd6 {[%clk
0:02:34.7]} 7. Nf3 {[%clk 0:03:00.2]} 7... e4 {[%clk 0:02:25.1]} 8. Ng5 {[%clk
0:02:59.3]} 8... Ne5 {[%clk 0:02:08.6]} 9. Bb5+ {[%clk 0:02:56.8]} 9... Bd7
{[%clk 0:02:09]} 10. Bxd7+ {[%clk 0:02:57.2]} 10... Qxd7 {[%clk 0:02:03.2]} 11.
Ncxe4 {[%clk 0:02:58.8]} 11... O-O-O {[%clk 0:01:46.6]} 12. O-O {[%clk
0:02:56.9]} 12... Bb8 {[%clk 0:01:24.7]} 13. Ng3 {[%clk 0:02:37.2]} 13... h6
{[%clk 0:01:19.5]} 14. Nf3 {[%clk 0:02:38.2]} 14... g5 {[%clk 0:01:04.9]} 15.
Nxe5 {[%clk 0:02:34.8]} 15... Bxe5 {[%clk 0:01:05.3]} 16. d3 {[%clk 0:02:36.4]}
16... Rdg8 {[%clk 0:00:53.7]} 17. Qf3 {[%clk 0:02:29.3]} 17... Kb8 {[%clk
0:00:43.3]} 18. Qf5 {[%clk 0:02:23.5]} 18... Qc7 {[%clk 0:00:42]} 19. Bd2 {[%clk
0:02:18.4]} 19... h5 {[%clk 0:00:31.4]} 20. Bxg5 {[%clk 0:02:13.1]} 20... Nd5
{[%clk 0:00:11.1]} 21. d4 {[%clk 0:02:01.6]} 21... Bxg3 {[%clk 0:00:10.2]} 22.
fxg3 {[%clk 0:02:03.5]} 22... Qxg3 {[%clk 0:00:10]} 23. Bf4+ {[%clk 0:02:01.2]}
23... Nxf4 {[%clk 0:00:10.5]} 24. Qxf4+ {[%clk 0:02:03.1]} 24... Qxf4 {[%clk
0:00:10.6]} 25. Rxf4 {[%clk 0:02:05]} 25... Rg3 {[%clk 0:00:08.1]} 26. Raf1
{[%clk 0:02:00.5]} 26... Re8 {[%clk 0:00:08.7]} 27. R1f2 {[%clk 0:02:02.1]}
27... Rge3 {[%clk 0:00:06.9]} 28. Rxf7 {[%clk 0:02:02]} 28... Re1+ {[%clk
0:00:07.8]} 29. Kh2 {[%clk 0:02:03.2]} 29... Rc1 {[%clk 0:00:08.5]} 30. Rh7
{[%clk 0:02:00.9]} 30... a6 {[%clk 0:00:09]} 31. Rxh5 {[%clk 0:02:01.7]} 1-0

[Event "*** Titled Tuesday 3|2 Blitz"]
[Site "Chess.com"]
[Date "2015.10.06"]
[Round "8"]
[White "Gabrinsky"]
[Black "chesstatour"]
[Result "1-0"]
[WhiteElo "2475"]
[BlackElo "1901"]
[TimeControl "180+2"]
[EndTime "18:40:07 PDT"]
[Termination "Gabrinsky won by resignation"]

1. e4 {[%clk 0:03:01.9]} 1... c6 {[%clk 0:03:00.8]} 2. d4 {[%clk 0:03:02.7]}
2... d5 {[%clk 0:03:02.4]} 3. exd5 {[%clk 0:03:04.3]} 3... cxd5 {[%clk
0:03:03.6]} 4. Bd3 {[%clk 0:03:05.7]} 4... Nc6 {[%clk 0:03:03.9]} 5. c3 {[%clk
0:03:07]} 5... g6 {[%clk 0:03:04.9]} 6. Bf4 {[%clk 0:03:08]} 6... Bg7 {[%clk
0:03:04.5]} 7. Nd2 {[%clk 0:03:09.4]} 7... Nh6 {[%clk 0:03:05.4]} 8. Ngf3 {[%clk
0:03:09.8]} 8... O-O {[%clk 0:03:05.9]} 9. O-O {[%clk 0:03:08.8]} 9... f6 {[%clk
0:03:06.5]} 10. Re1 {[%clk 0:03:09.3]} 10... Nf7 {[%clk 0:03:07.4]} 11. Bb5
{[%clk 0:03:07.9]} 11... e5 {[%clk 0:03:05.9]} 12. Bxc6 {[%clk 0:03:05.8]} 12...
bxc6 {[%clk 0:03:04.3]} 13. dxe5 {[%clk 0:03:06.5]} 13... fxe5 {[%clk
0:03:01.4]} 14. Nxe5 {[%clk 0:03:02.1]} 14... Nxe5 {[%clk 0:02:20.6]} 15. Bxe5
{[%clk 0:03:01.5]} 15... Bxe5 {[%clk 0:02:10.3]} 16. Rxe5 {[%clk 0:03:03.4]}
16... Qf6 {[%clk 0:02:07.7]} 17. Qe2 {[%clk 0:02:52.9]} 17... Ba6 {[%clk
0:02:00.3]} 18. Qe3 {[%clk 0:02:53.4]} 18... Rf7 {[%clk 0:01:48.4]} 19. Re1
{[%clk 0:02:52.2]} 19... Raf8 {[%clk 0:01:46.9]} 20. f3 {[%clk 0:02:52.9]} 20...
Kg7 {[%clk 0:01:35.3]} 21. Re6 {[%clk 0:02:47.1]} 21... Qf4 {[%clk 0:01:29.1]}
22. Qxf4 {[%clk 0:02:43.3]} 22... Rxf4 {[%clk 0:01:27.2]} 23. Rxc6 {[%clk
0:02:41]} 23... Bb7 {[%clk 0:01:14]} 24. Rc7+ {[%clk 0:02:40.4]} 24... R8f7
{[%clk 0:01:13.4]} 25. Ree7 {[%clk 0:02:40.4]} 25... Rxe7 {[%clk 0:01:12]} 26.
Rxe7+ {[%clk 0:02:41.1]} 26... Rf7 {[%clk 0:01:13.5]} 27. Rxf7+ {[%clk
0:02:42.5]} 27... Kxf7 {[%clk 0:01:15.4]} 28. Nb3 {[%clk 0:02:44]} 28... Ba6
{[%clk 0:01:14]} 29. Kf2 {[%clk 0:02:44.6]} 29... Bc4 {[%clk 0:01:14.5]} 30. Nc1
{[%clk 0:02:43.2]} 30... Ke6 {[%clk 0:01:14.5]} 31. b3 {[%clk 0:02:44.6]} 31...
Bb5 {[%clk 0:01:14.1]} 32. Ke3 {[%clk 0:02:46.1]} 32... Ke5 {[%clk 0:01:14.6]}
33. g3 {[%clk 0:02:46.9]} 33... Bf1 {[%clk 0:00:39.7]} 34. Nd3+ {[%clk
0:02:45.2]} 34... Kd6 {[%clk 0:00:38.2]} 35. Kd4 {[%clk 0:02:45.6]} 35... Bg2
{[%clk 0:00:36.6]} 36. f4 {[%clk 0:02:46.9]} 36... Be4 {[%clk 0:00:35.3]} 37.
Nc5 {[%clk 0:02:48]} 37... Bb1 {[%clk 0:00:35.8]} 38. a4 {[%clk 0:02:48.8]}
38... Ba2 {[%clk 0:00:34.5]} 39. b4 {[%clk 0:02:49.4]} 39... Bc4 {[%clk
0:00:34.6]} 40. Nd3 {[%clk 0:02:47.1]} 40... a6 {[%clk 0:00:33.3]} 41. Ne5
{[%clk 0:02:46.4]} 41... Bb3 {[%clk 0:00:31.1]} 42. a5 {[%clk 0:02:47.3]} 42...
Ke6 {[%clk 0:00:20.9]} 43. Nd3 {[%clk 0:02:45.6]} 43... Bc4 {[%clk 0:00:19.3]}
44. Ne5 {[%clk 0:02:41.7]} 44... Kf5 {[%clk 0:00:16.7]} 45. Nxc4 {[%clk
0:02:42.3]} 45... dxc4 {[%clk 0:00:15.4]} 46. b5 {[%clk 0:02:43.3]} 1-0

[Event "*** Titled Tuesday 3|2 Blitz"]
[Site "Chess.com"]
[Date "2015.10.06"]
[Round "8"]
[White "ltpnj"]
[Black "3f32"]
[Result "0-1"]
[WhiteElo "2325"]
[BlackElo "2282"]
[TimeControl "180+2"]
[EndTime "18:40:57 PDT"]
[Termination "3f32 won by checkmate"]

1. e4 {[%clk 0:03:01.9]} 1... e5 {[%clk 0:02:53.8]} 2. Nf3 {[%clk 0:03:02.3]}
2... Nc6 {[%clk 0:02:55.3]} 3. Bc4 {[%clk 0:03:03.6]} 3... Bc5 {[%clk
0:02:55.1]} 4. O-O {[%clk 0:03:03.5]} 4... Nf6 {[%clk 0:02:56.5]} 5. Re1 {[%clk
0:03:03.9]} 5... d6 {[%clk 0:02:55.3]} 6. d3 {[%clk 0:03:01.3]} 6... O-O {[%clk
0:02:48.1]} 7. c3 {[%clk 0:03:02.1]} 7... Ng4 {[%clk 0:02:36.1]} 8. Re2 {[%clk
0:03:02.1]} 8... Kh8 {[%clk 0:02:35.8]} 9. d4 {[%clk 0:02:56.3]} 9... Bb6 {[%clk
0:02:33.6]} 10. Bg5 {[%clk 0:02:53.4]} 10... f6 {[%clk 0:02:33.8]} 11. Bh4
{[%clk 0:02:52.1]} 11... g5 {[%clk 0:02:33.3]} 12. Bg3 {[%clk 0:02:53.1]} 12...
h5 {[%clk 0:02:34.1]} 13. h3 {[%clk 0:02:52.5]} 13... Nh6 {[%clk 0:02:34.8]} 14.
Qd2 {[%clk 0:02:38.8]} 14... Kg7 {[%clk 0:02:32.6]} 15. dxe5 {[%clk 0:02:26]}
15... dxe5 {[%clk 0:02:30.9]} 16. Na3 {[%clk 0:02:25.7]} 16... g4 {[%clk
0:02:26.9]} 17. hxg4 {[%clk 0:02:20.8]} 17... Bxg4 {[%clk 0:02:28.5]} 18. Rd1
{[%clk 0:02:16.6]} 18... Qe7 {[%clk 0:02:26.3]} 19. Bd5 {[%clk 0:02:08.9]} 19...
Rad8 {[%clk 0:02:23.2]} 20. Nc4 {[%clk 0:02:10.1]} 20... Bc5 {[%clk 0:02:16]}
21. Qc1 {[%clk 0:02:08.4]} 21... a6 {[%clk 0:02:13.6]} 22. Rd3 {[%clk
0:02:00.8]} 22... Nb8 {[%clk 0:02:12.9]} 23. Ncxe5 {[%clk 0:01:36.4]} 23... fxe5
{[%clk 0:02:06.5]} 24. Bh4 {[%clk 0:01:37.2]} 24... Qd6 {[%clk 0:01:56.1]} 25.
b4 {[%clk 0:01:13.4]} 25... Ba7 {[%clk 0:01:45.9]} 26. Bxd8 {[%clk 0:01:11.9]}
26... Qxd8 {[%clk 0:01:46.2]} 27. Qd2 {[%clk 0:00:58.6]} 27... Qf6 {[%clk
0:01:41.6]} 28. Bxb7 {[%clk 0:00:55.6]} 28... Qg6 {[%clk 0:01:33.7]} 29. Kf1
{[%clk 0:00:32.5]} 29... Bxf3 {[%clk 0:01:31]} 30. Rxf3 {[%clk 0:00:34.4]} 30...
Rxf3 {[%clk 0:01:26.7]} 31. gxf3 {[%clk 0:00:36.3]} 31... Qf6 {[%clk 0:01:27.2]}
32. Re1 {[%clk 0:00:29.8]} 32... Qxf3 {[%clk 0:01:18.2]} 33. Bd5 {[%clk
0:00:27.2]} 33... Kh7 {[%clk 0:01:03]} 34. Qg5 {[%clk 0:00:25.6]} 34... Qxf2#
{[%clk 0:01:03.3]} 0-1